Workbook

Sheet Nachname_Vorname
A1: Studiengang PHYSIOTHERAPIE
A2: Detaillierter Vergleich der theoretischen Ausbildung
B3: Titel - Vorname - Nachname | H3: Land der/des Antragsteller*in
B4: Titel - Vorname - Nachname | H4: Land der*des Antragsteller*in
B6: Dauer des anzurechnenden Studiums | H6: Studium Beginn und Ende
H7: Ausbildungsinstitution der/des Antragsteller*in
B8: FH Campus Wien / Curriculum P25 / 6 Semester | H8: Ausbildungsinstitution der*des Antragsteller*in
B9: Lehrveranstaltung (LV) | C9: Stunden / ECTS --> | D9: 25 STD | E9: Anzahl der Semester-wochen --> | F9: 18 SW | H9: Stunden / ECTS --> | I9: 25 STD | J9: Anzahl der Semester-wochen --> | K9: 18 SW | L9: Lehrveranstaltung (LV)
A10: SEM | B10: 1. Semester | C10: ECTS | D10: STD | E10: SWS | F10: UE | H10: ECTS | I10: STD | J10: SWS | K10: SWS*SW | L10: UE | M10: Titel der Lehrveranstaltung in welcher der Unterricht enthalten ist
A11: SEM01 | B11: Allgemeine Pathologie + Hygiene | C11: 1.5 | D11: =$D$9*C11 -> 38 h | E11: 1.5 | F11: =$F$9*E11 -> 27 UE | I11: =$I$9*H11 -> 0 h | K11: =J11*$K$9 -> 0 UE
A12: SEM01 | B12: Anatomie 1 | C12: 3.5 | D12: 88 h | E12: 2 | F12: 36 UE | I12: 0 h | K12: 0 UE
A13: SEM01 | B13: Physiologie 1 | C13: 2 | D13: 50 h | E13: 1.5 | F13: 27 UE | I13: 0 h | K13: 0 UE
A14: SEM01 | B14: Anatomie in vivo | C14: 2 | D14: 50 h | E14: 1.5 | F14: 27 UE | I14: 0 h | K14: 0 UE
A15: SEM01 | B15: Anatomische Übungen | C15: 3 | D15: 75 h | E15: 1.5 | F15: 27 UE | I15: 0 h | K15: 0 UE
A16: SEM01 | B16: Haltungs- und Bewegungsanalyse | C16: 3 | D16: 75 h | E16: 3 | F16: 54 UE | I16: 0 h | K16: 0 UE
A17: SEM01 | B17: Mobilisation + professionelles Handling | C17: 3 | D17: 75 h | E17: 3 | F17: 54 UE | I17: 0 h | K17: 0 UE
A18: SEM01 | B18: Entspannungstechniken | C18: 1 | D18: 25 h | E18: 1 | F18: 18 UE | I18: 0 h | K18: 0 UE
A19: SEM01 | B19: Klassische Massage | C19: 2 | D19: 50 h | E19: 2 | F19: 36 UE | I19: 0 h | K19: 0 UE
A20: SEM01 | B20: Motorisches Lernen + Methodik | C20: 2 | D20: 50 h | E20: 2 | F20: 36 UE | I20: 0 h | K20: 0 UE
A21: SEM01 | B21: Wahrnehmungs- und Haltungsschulung 1 | C21: 1 | D21: 25 h | E21: 1 | F21: 18 UE | I21: 0 h | K21: 0 UE
A22: SEM01 | B22: Physiotherapeutischer Prozess im Berufsfeld | C22: 2 | D22: 50 h | E22: 2 | F22: 36 UE | I22: 0 h | K22: 0 UE
A23: SEM01 | B23: Public Health + Gesundheitsförderung | C23: 1 | D23: 25 h | E23: 1 | F23: 18 UE | I23: 0 h | K23: 0 UE
A24: SEM01 | B24: Phänomen Schmerz | C24: 2 | D24: 50 h | E24: 1 | F24: 18 UE | I24: 0 h | K24: 0 UE
A25: SEM01 | B25: Kompetenzentwicklung 1 | C25: 1 | D25: 25 h | E25: 1 | F25: 18 UE | I25: 0 h | K25: 0 UE
A26: =COUNTA(A11:A25) -> 15 LV | B26: Summe 1. Semester | C26: =SUM(C11:C25) -> 30 | D26: =SUM(D11:D25) -> 750 h | E26: =SUM(E11:E25) -> 25 | F26: =SUM(F11:F25) -> 450 UE | H26: =SUM(H11:H25) -> 0 | I26: =SUM(I11:I25) -> 0 h | J26: =SUM(J11:J25) -> 0 | K26: =SUM(K11:K25) -> 0 UE | L26: =SUM(L11:L25) -> 0 UE
A28: SEM | B28: 2. Semester | C28: ECTS | D28: STD | E28: SWS | F28: UE | H28: ECTS | I28: STD | J28: SWS | K28: SWS*SW | L28: UE | M28: Titel der Lehrveranstaltung in welcher der Unterricht enthalten ist
A29: SEM02 | B29: Anatomie 2 | C29: 1 | D29: =$D$9*C29 -> 25 h | E29: 1 | F29: =$F$9*E29 -> 18 UE | I29: =$I$9*H29 -> 0 h | K29: =J29*$K$9 -> 0 UE
A30: SEM02 | B30: Physiologie 2 | C30: 1 | D30: 25 h | E30: 1 | F30: 18 UE | I30: 0 h | K30: 0 UE
A31: SEM02 | B31: Organsystem Klinik | C31: 3 | D31: 75 h | E31: 3 | F31: 54 UE | I31: 0 h | K31: 0 UE
A32: SEM02 | B32: Angewandte Bewegungswissenschaften | C32: 3 | D32: 75 h | E32: 3 | F32: 54 UE | I32: 0 h | K32: 0 UE
A33: SEM02 | B33: Medizinische Trainingstherapie | C33: 4 | D33: 100 h | E33: 4 | F33: 72 UE | I33: 0 h | K33: 0 UE
A34: SEM02 | B34: Ganganalyse + Gangschulung | C34: 2 | D34: 50 h | E34: 2 | F34: 36 UE | I34: 0 h | K34: 0 UE
A35: SEM02 | B35: Sensomotorische Entwicklung | C35: 1 | D35: 25 h | E35: 1 | F35: 18 UE | I35: 0 h | K35: 0 UE
A36: SEM02 | B36: Strukturelle Untersuchung | C36: 2 | D36: 50 h | E36: 2 | F36: 36 UE | I36: 0 h | K36: 0 UE
A37: SEM02 | B37: Physikalische Therapie | C37: 3 | D37: 75 h | E37: 3 | F37: 54 UE | I37: 0 h | K37: 0 UE
A38: SEM02 | B38: Therapeutische Techniken + Übungen | C38: 2 | D38: 50 h | E38: 2 | F38: 36 UE | I38: 0 h | K38: 0 UE
A39: SEM02 | B39: Fazilitation | C39: 1 | D39: 25 h | E39: 1 | F39: 18 UE | I39: 0 h | K39: 0 UE
A40: SEM02 | B40: Wahrnehmungs- und Haltungsschulung 2 | C40: 1 | D40: 25 h | E40: 1 | F40: 18 UE | I40: 0 h | K40: 0 UE
A41: SEM02 | B41: Clinical Reasoning | C41: 1 | D41: 25 h | E41: 1 | F41: 18 UE | I41: 0 h | K41: 0 UE
A42: SEM02 | B42: Vorbereitung Klinischer Praxis | C42: 1 | D42: 25 h | E42: 1 | F42: 18 UE | I42: =$I$9*H42 -> 0 h | K42: =J42*$K$9 -> 0 UE
A43: SEM02 | B43: Summe 2. Semester (ohne Praktikum) | C43: =SUM(C29:C42) -> 26 | D43: =SUM(D29:D42) -> 650 h | E43: =SUM(E29:E42) -> 26 | F43: =SUM(F29:F42) -> 468 UE | I43: 0 h | K43: 0 UE
A44: SEM02 | B44: Berufseinführende Praxislernphase | C44: 4 | D44: =$D$9*C44 -> 100 h | I44: 0 h | K44: 0 UE
A45: =COUNTA(A29:A42) -> 14 LV | B45: Summe 2. Semester | C45: =C43+C44 -> 30 | D45: =D43+D44 -> 750 h | E45: =E43+E44 -> 26 | F45: =F43+F44 -> 468 UE | H45: =SUM(H29:H44) -> 0 | I45: =SUM(I29:I44) -> 0 h | J45: =SUM(J29:J44) -> 0 | K45: =SUM(K29:K44) -> 0 UE | L45: =SUM(L29:L44) -> 0 UE
A47: SEM | B47: 3. Semester | C47: ECTS | D47: STD | E47: SWS | F47: UE | H47: ECTS | I47: STD | J47: SWS | K47: SWS*SW | L47: UE | M47: Titel der Lehrveranstaltung in welcher der Unterricht enthalten ist
A48: SEM03 | B48: Neurologie 1 | C48: 4.5 | D48: =$D$9*C48 -> 113 h | E48: 4.5 | F48: =$F$9*E48 -> 81 UE | I48: =$I$9*H48 -> 0 h | K48: =J48*$K$9 -> 0 UE
A49: SEM03 | B49: Pädiatrie 1 | C49: 1.5 | D49: 38 h | E49: 1.5 | F49: 27 UE | I49: 0 h | K49: 0 UE
A50: SEM03 | B50: Neurophysiologische Konzepte | C50: 3 | D50: 75 h | E50: 3 | F50: 54 UE | I50: 0 h | K50: 0 UE
A51: SEM03 | B51: Orthopädie/Traumatologie + Bildgebung | C51: 2 | D51: 50 h | E51: 2 | F51: 36 UE | I51: 0 h | K51: 0 UE
A52: SEM03 | B52: Orthopädie/Traumatologie + Rheumatologie 1 | C52: 3.5 | D52: 88 h | E52: 3.5 | F52: 63 UE | I52: 0 h | K52: 0 UE
A53: SEM03 | B53: Funktionelle Verbände | C53: 0.5 | D53: 13 h | E53: 0.5 | F53: 9 UE | I53: 0 h | K53: 0 UE
A54: SEM03 | B54: Manualtherapie 1 | C54: 3 | D54: 75 h | E54: 3 | F54: 54 UE | I54: 0 h | K54: 0 UE
A55: SEM03 | B55: Gynäkologie/Geburtshilfe/Urologie 1 | C55: 1 | D55: 25 h | E55: 1 | F55: 18 UE | I55: 0 h | K55: 0 UE
A56: SEM03 | B56: Innere Medizin + Chirurgie 1 | C56: 3 | D56: 75 h | E56: 2.5 | F56: 45 UE | I56: 0 h | K56: 0 UE
A57: SEM03 | B57: Lymphologische Physiotherapie | C57: 2 | D57: 50 h | E57: 2 | F57: 36 UE | I57: 0 h | K57: 0 UE
A58: SEM03 | B58: Respiratorische Physiotherapie | C58: 2 | D58: 50 h | E58: 2 | F58: 36 UE | I58: 0 h | K58: 0 UE
A59: SEM03 | B59: Wissenschaftliches Arbeiten + Statistik | C59: 2 | D59: 50 h | E59: 1.5 | F59: 27 UE | I59: 0 h | K59: 0 UE
A60: SEM03 | B60: Literature Seminar | C60: 2 | D60: 50 h | E60: 1.5 | F60: 27 UE | I60: 0 h | K60: 0 UE
A61: =COUNTA(A48:A60) -> 13 LV | B61: Summe 3. Semester | C61: =SUM(C48:C60) -> 30 | D61: =SUM(D48:D60) -> 750 h | E61: =SUM(E48:E60) -> 28.5 | F61: =SUM(F48:F60) -> 513 UE | H61: =SUM(H48:H60) -> 0 | I61: =SUM(I48:I60) -> 0 h | J61: =SUM(J48:J60) -> 0 | K61: =SUM(K48:K60) -> 0 UE | L61: =SUM(L48:L60) -> 0 UE
A63: SEM | B63: 4. Semester | C63: ECTS | D63: STD | E63: SWS | F63: UE | H63: ECTS | I63: STD | J63: SWS | K63: SWS*SW | L63: UE | M63: Titel der Lehrveranstaltung in welcher der Unterricht enthalten ist
A64: SEM04 | B64: Neurologie 2 | C64: 4 | D64: =$D$9*C64 -> 100 h | E64: 4 | F64: =$F$9*E64 -> 72 UE | I64: =$I$9*H64 -> 0 h | K64: =J64*$K$9 -> 0 UE
A65: SEM04 | B65: Pädiatrie 2 | C65: 3 | D65: 75 h | E65: 3 | F65: 54 UE | I65: 0 h | K65: 0 UE
A66: SEM04 | B66: Orthopädie/Traumatologie + Rheumatologie 2 | C66: 2 | D66: 50 h | E66: 2 | F66: 36 UE | I66: 0 h | K66: 0 UE
A67: SEM04 | B67: Manualtherapie 2 | C67: 1 | D67: 25 h | E67: 1 | F67: 18 UE | I67: 0 h | K67: 0 UE
A68: SEM04 | B68: Innere Medizin + Chirurgie + Gynäkologie 2 | C68: 2 | D68: 50 h | E68: 2 | F68: 36 UE | I68: 0 h | K68: 0 UE
A69: SEM04 | B69: Geriatrie + Gerontopsychiatrie | C69: 2.5 | D69: 63 h | E69: 2 | F69: 36 UE | I69: 0 h | K69: 0 UE
A70: SEM04 | B70: Intensivmedizin | C70: 1.5 | D70: 38 h | E70: 1.5 | F70: 27 UE | I70: 0 h | K70: 0 UE
A71: SEM04 | B71: Onkologie + Palliative Care/Hospizwesen | C71: 1 | D71: 25 h | E71: 1 | F71: 18 UE | I71: 0 h | K71: 0 UE
A72: SEM04 | B72: Psychiatrie + Psychosomatik | C72: 2 | D72: 50 h | E72: 2 | F72: 36 UE | I72: 0 h | K72: 0 UE
A73: SEM04 | B73: Professionelle Gesprächsführung + Interaktion 1 | C73: 1 | D73: 25 h | E73: 1 | F73: 18 UE | I73: 0 h | K73: 0 UE
A74: SEM04 | B74: Schreibwerkstatt | C74: 1 | D74: 25 h | E74: 1 | F74: 18 UE | I74: 0 h | K74: 0 UE
A75: SEM04 | B75: Summe 4. Semester (ohne Praktikum) | C75: =SUM(C64:C74) -> 21 | D75: =SUM(D64:D74) -> 525 h | E75: =SUM(E64:E74) -> 20.5 | F75: =SUM(F64:F74) -> 369 UE | I75: =$I$9*H75 -> 0 h | K75: =J75*$K$9 -> 0 UE
A76: SEM04 | B76: Praxislernphase 1 | C76: 9 | D76: =$D$9*C76 -> 225 h | I76: 0 h | K76: 0 UE
A77: =COUNTA(A64:A74) -> 11 LV | B77: Summe 4. Semester (mit Praktikum) | C77: =C75+C76 -> 30 | D77: =D75+D76 -> 750 h | E77: =E75+E76 -> 20.5 | F77: =F75+F76 -> 369 UE | H77: =SUM(H64:H76) -> 0 | I77: =SUM(I64:I76) -> 0 h | J77: =SUM(J64:J76) -> 0 | K77: =SUM(K64:K76) -> 0 UE | L77: =SUM(L64:L76) -> 0 UE
A79: SEM | B79: 5. Semester | C79: ECTS | D79: STD | E79: SWS | F79: UE | H79: ECTS | I79: STD | J79: SWS | K79: SWS*SW | L79: UE | M79: Titel der Lehrveranstaltung in welcher der Unterricht enthalten ist
A80: SEM05 | B80: Beruf, Recht + Wirtschaft | C80: 2 | D80: =$D$9*C80 -> 50 h | E80: 2 | F80: =$F$9*E80 -> 36 UE | I80: =$I$9*H80 -> 0 h | K80: =J80*$K$9 -> 0 UE
A81: SEM05 | B81: Ethik + Gesellschaft | C81: 1 | D81: 25 h | E81: 1 | F81: 18 UE | I81: 0 h | K81: 0 UE
A82: SEM05 | B82: Professionelle Gesprächsführung + Interaktion 2 | C82: 3 | D82: 75 h | E82: 2.5 | F82: 45 UE | I82: 0 h | K82: 0 UE
A83: SEM05 | B83: Fachsupervision 1 | C83: 1 | D83: 25 h | E83: 1 | F83: 18 UE | I83: 0 h | K83: 0 UE
A84: SEM05 | B84: Fachsupervision 2 | C84: 1 | D84: 25 h | E84: 1 | F84: 18 UE | I84: 0 h | K84: 0 UE
A85: SEM05 | B85: Klinische Prüfung 1 | C85: 1 | D85: 25 h | E85: 0.5 | F85: 9 UE | I85: 0 h | K85: 0 UE
A86: SEM05 | B86: Bachelorarbeitsseminar 1 | C86: 7 | D86: 175 h | E86: 1 | F86: 18 UE | I86: 0 h | K86: 0 UE
A87: SEM05 | B87: Summe 5. Semester (ohne Praktikum) | C87: =SUM(C80:C86) -> 16 | D87: =SUM(D80:D86) -> 400 h | E87: =SUM(E80:E86) -> 9 | F87: =SUM(F80:F86) -> 162 UE | I87: =$I$9*H87 -> 0 h | K87: =J87*$K$9 -> 0 UE
A88: SEM05 | B88: Praxislernphase 2 | C88: 14 | D88: =$D$9*C88 -> 350 h | I88: 0 h | K88: 0 UE
A89: =COUNTA(A80:A86) -> 7 LV | B89: Summe 5. Semester (mit Praktikum) | C89: =C87+C88 -> 30 | D89: =D87+D88 -> 750 h | E89: =E87+E88 -> 9 | F89: =F87+F88 -> 162 UE | H89: =SUM(H80:H88) -> 0 | I89: =SUM(I80:I88) -> 0 h | J89: =SUM(J80:J88) -> 0 | K89: =SUM(K80:K88) -> 0 UE | L89: =SUM(L80:L88) -> 0 UE
A91: SEM | B91: 6. Semester | C91: ECTS | D91: STD | E91: SWS | F91: UE | H91: ECTS | I91: STD | J91: SWS | K91: SWS*SW | L91: UE | M91: Titel der Lehrveranstaltung in welcher der Unterricht enthalten ist
A92: SEM06 | B92: Bachelorarbeitsseminar 2 | C92: 2 | D92: =$D$9*C92 -> 50 h | E92: 0.5 | F92: =$F$9*E92 -> 9 UE | I92: =$I$9*H92 -> 0 h | K92: =J92*$K$9 -> 0 UE
A93: SEM06 | B93: Kompetenzentwicklung 2 | C93: 1 | D93: 25 h | E93: 1 | F93: 18 UE | I93: 0 h | K93: 0 UE
A94: SEM06 | B94: Klinische Prüfung 2 | C94: 1 | D94: 25 h | E94: 0.5 | F94: 9 UE | I94: 0 h | K94: 0 UE
A95: SEM06 | B95: Bachelorprüfung | C95: 1 | D95: 25 h | E95: 0 | F95: 0 UE | I95: 0 h | K95: 0 UE
A96: SEM06 | B96: Wahl: Reflexzonen- und Meridiantherapien | C96: 1 | D96: 25 h | E96: 1 | F96: 18 UE | I96: 0 h | K96: 0 UE
A97: SEM06 | B97: Wahl: Practical Add Ons | C97: 2 | D97: 50 h | E97: 1 | F97: 18 UE | I97: 0 h | K97: 0 UE
A98: SEM06 | B98: Wahl: Bezugswissenschaften | C98: 3 | D98: 75 h | E98: 2 | F98: 36 UE | I98: 0 h | K98: 0 UE
A99: SEM06 | B99: Summe 6. Semester (ohne Praktikum) | C99: =SUM(C92:C98) -> 11 | D99: =SUM(D92:D98) -> 275 h | E99: =SUM(E92:E98) -> 6 | F99: =SUM(F92:F98) -> 108 UE | I99: =$I$9*H99 -> 0 h | K99: =J99*$K$9 -> 0 UE
A100: SEM06 | B100: Praxislernphase 3 | C100: 19 | D100: =$D$9*C100 -> 475 h | I100: 0 h | K100: 0 UE
A101: =COUNTA(A92:A98) -> 7 LV | B101: Summe 6. Semester (mit Praktikum) | C101: =C99+C100 -> 30 | D101: =D99+D100 -> 750 h | E101: =E99+E100 -> 6 | F101: =F99+F100 -> 108 UE | H101: =SUM(H92:H100) -> 0 | I101: =SUM(I92:I100) -> 0 h | J101: =SUM(J92:J100) -> 0 | K101: =SUM(K92:K100) -> 0 UE | L101: =SUM(L92:L100) -> 0 UE | M101: =A101+A89+A77+A61+A45+A26 -> 67 LVs im STG PT
M102: =COUNTA(N10:N100) -> 0 fehlende Studienfächer
A103: =A101+A89+A77+A61+A45+A26 -> 67 LV | B103: Theoretische Ausbildung | C103: =C99+C87+C75+C61+C43+C26 -> 134 ECTS | D103: =C103*$D$9 -> 3350 h | E103: =E99+E87+E75+E61+E43+E26 -> 115.0 SWS | F103: =E103*$F$9 -> 2070 UE | H103: =SUM(H26,H45,H61,H77,H89,H101) -> 0 | I103: =SUM(I26,I45,I61,I77,I89,I101) -> 0 h | J103: =SUM(J26,J45,J61,J77,J89,J101) -> 0 | K103: =SUM(K26,K45,K61,K77,K89,K101) -> 0 UE | L103: =SUM(L26,L45,L61,L77,L89,L101) -> 0 UE | M103: =M102/M101 -> 0.00%
A104: K | B104: Praktische Ausbildung | C104: =C100+C88+C76+C44 -> 46 ECTS | D104: =C104*$D$9 -> 1150 h | H104: fehlende ECTS von 180 ECTS | J104: in Prozent von 180 ECTS
A105: =SUMIF(N11:N100,A104,C10:C101) -> 0 | B105: Ausbildung Gesamt | C105: =SUM(C103:C104) -> 180 ECTS | D105: =C105*$D$9 -> 4500 h | E105: =SUM(E103:E104) -> 115.0 SWS | F105: =E105*$F$9 -> 2070 UE | H105: =A105 -> 0.0 | I105: ECTS | J105: =H105/C105 -> 0.0% | M105: wenn % größer als 25% dann wird die Nostrifikation nicht empfohlen
H108: Nicht anrechenbare Lehrveranstaltungen der/des Antragsteller*in
H109: ECTS | I109: STD | J109: SWS | K109: UE | L109: UE | M109: Nicht anrechenbare Lehrveranstaltungen
I110: =$I$9*H110 -> 0 h | K110: =J110*$K$9 -> 0 UE
I111: 0 h | K111: 0 UE
I112: 0 h | K112: 0 UE
I113: 0 h | K113: 0 UE
I114: 0 h | K114: 0 UE
I115: 0 h | K115: 0 UE
I116: 0 h | K116: 0 UE
I117: 0 h | K117: 0 UE
I118: 0 h | K118: 0 UE
I119: 0 h | K119: 0 UE
I120: 0 h | K120: 0 UE
I121: 0 h | K121: 0 UE
I122: 0 h | K122: 0 UE
I123: 0 h | K123: 0 UE
I124: 0 h | K124: 0 UE
I125: 0 h | K125: 0 UE
I126: 0 h | K126: 0 UE
I127: 0 h | K127: 0 UE
I128: 0 h | K128: 0 UE
I129: 0 h | K129: 0 UE
I130: 0 h | K130: 0 UE
I131: 0 h | K131: 0 UE
I132: 0 h | K132: 0 UE
I133: 0 h | K133: 0 UE
I134: 0 h | K134: 0 UE
I135: 0 h | K135: 0 UE
I136: 0 h | K136: 0 UE
I137: 0 h | K137: 0 UE
I138: 0 h | K138: 0 UE
I139: 0 h | K139: 0 UE
I140: 0 h | K140: 0 UE
H141: =SUM(H110:H140) -> 0 | I141: =SUM(I110:I140) -> 0 h | J141: =SUM(J110:J140) -> 0 | K141: =SUM(K110:K140) -> 0 UE | L141: =SUM(L110:L140) -> 0 UE | M141: Summe der nicht anrechenbaren Stunden
A143: Detaillierter Vergleich der klinisch praktischen Ausbildung
B145: Klinisch praktische Ausbildung FH Campus Wien | H145: Klinisch praktische Ausbildung der*des Antragsteller*in
B146: Curriculum PT22
B147: Praktikum | C147: ECTS | D147: STD | H147: ECTS | I147: STD | J147: Klinischer Bereich des Praktikums
B148: Berufseinführende Praxislernphase | C148: 4 | D148: =$D$9*C148 -> 100 h
B149: Praxislernphase 1 | C149: 9 | D149: =$D$9*C149 -> 225 h
B150: Praxislernphase 2 | C150: 14 | D150: 350 h
B151: Praxislernphase 3 | C151: 19 | D151: 475 h
B152: Klinisch praktische Ausbildung FH Campus Wien | C152: =SUM(C148:C151) -> 46 | D152: =SUM(D148:D151) -> 1150 h
B153: Klinische Übungen/Physikalische Medizin + Allgemeine Rehabilitation | C153: mind. 80 Stunden pro Bereich
B154: Klinische Übungen/Bewegungssystem
B155: Klinische Übungen/Organsystem
B156: Klinische Übungen/Bewegungsentw. und -kontrolle
B157: Klinische Übungen/Verhalten + Erleben
E158: Stunden in Prozent von klinisch praktischer Ausbildung PT FHCW | F158: =I158/D152 -> 0% | H158: =SUM(H148:H157) -> 0 | I158: =SUM(I148:I157) -> 0 h

Sheet Tabelle1 (hidden)
